fUST/lending_fUST_20260408
["ID","MTS","AMOUNT","RATE_DAILY","PERIOD"]
[419974140,1775577603060,152.18,9e-05,2]
[419974141,1775577603380,152.18,9e-05,2]
[419974142,1775577603714,152.18,9e-05,2]
[419974143,1775577604016,152.18,9.1e-05,2]
[419974144,1775577604322,152.18,9.1e-05,2]
[419974145,1775577604676,152.18,9.1e-05,2]
[419974146,1775577605066,152.18,9.1e-05,2]
[419974147,1775577605355,152.18,9.2e-05,2]
[419974148,1775577605653,152.18,9.2e-05,2]
[419974149,1775577606220,152.18,9.2e-05,2]
[419974150,1775577606598,152.18,9.2e-05,2]
[419974151,1775577606889,152.18,9.2e-05,2]
[419974152,1775577607216,152.18,9.3e-05,2]
[419974153,1775577607505,152.18,9.3e-05,2]
[419974154,1775577607823,152.18,9.3e-05,2]
[419974155,1775577608115,152.18,9.3e-05,2]
[419974156,1775577608404,152.18,9.4e-05,2]
[419974157,1775577608696,152.18,9.4e-05,2]
[419974158,1775577608994,152.18,9.4e-05,2]
[419974159,1775577609278,152.18,9.4e-05,2]
[419974160,1775577609552,152.18,9.4e-05,2]
[419974161,1775577609842,152.18,9.5e-05,2]
[419974162,1775577610174,152.18,9.5e-05,2]
[419974163,1775577610455,152.18,9.5e-05,2]
[419974164,1775577610798,152.18,9.5e-05,2]
[419974165,1775577611087,152.18,9.6e-05,2]
[419974166,1775577611397,152.18,9.6e-05,2]
[419974167,1775577611728,152.18,9.6e-05,2]
[419974168,1775577612687,152.18,9.6e-05,2]
[419974169,1775577612720,152.18,9.7e-05,2]
[419974170,1775577612806,152.18,9.7e-05,2]
[419974171,1775577613123,152.18,9.7e-05,2]
[419974172,1775577613402,152.18,9.7e-05,2]
[419974173,1775577613713,152.18,9.7e-05,2]
[419974174,1775577614004,152.18,9.8e-05,2]
[419974175,1775577614272,152.18,9.8e-05,2]
[419974176,1775577615214,152.18,9.8e-05,2]
[419974177,1775577615251,152.18,9.8e-05,2]
[419974178,1775577615506,152.18,9.9e-05,2]
[419974179,1775577615775,152.18,9.9e-05,2]
[419974180,1775577616056,152.18,9.9e-05,2]
[419974182,1775577701131,-1000.0,0.00013425,2]
[419974184,1775577868358,10000.0,0.0001001,2]
[419974185,1775577878396,10000.0,0.0001001,2]
[419974186,1775577885109,10000.0,0.0001001,2]
[419974187,1775577892408,10000.0,0.0001001,2]
[419974188,1775577900745,10000.0,0.0001001,2]
[419974189,1775577915490,2642.0,0.0001001,2]
[419974253,1775578232714,-426.65314757,0.00013015,2]
[419974255,1775578232727,-4573.34685243,0.00013015,2]
[419974257,1775578232737,-648.79628165,0.00013146,2]
[419974259,1775578232746,-1000.0,0.00013699,2]
[419974260,1775578232757,-151.0,0.00016948,2]
[419974261,1775578232766,-487.0,0.00023024,10]
[419974262,1775578232776,-185.0,0.00024134,2]
[419974264,1775578232785,-440.0,0.00024134,2]
[419974265,1775578232794,-270.83333333,0.00024136,2]
[419974266,1775578232804,-300.0,0.00024505,2]
[419974267,1775578232814,-210.642,0.00024506,2]
[419974268,1775578232823,-232.529,0.00024506,2]
[419974269,1775578232832,-150.572,0.00024506,2]
[419974270,1775578232842,-250.0,0.00024506,2]
[419974271,1775578232852,-150.834,0.00024506,2]
[419974273,1775578232862,-7415.89418572,0.000248,2]
[419974275,1775578232872,-300.0,0.00025217,2]
[419974276,1775578232881,-500.0,0.00025883,30]
[419974278,1775578232891,-569.6043022,0.00025883,30]
[419974279,1775578232901,-551.024588,0.00025883,30]
[419974280,1775578232911,-167.1963336,0.00025883,30]
[419974281,1775578232921,-475.0,0.00026189,120]
[419974283,1775578232931,-151.0,0.00026202,2]
[419974285,1775578232941,-420.0,0.0002656,2]
[419974287,1775578232952,-1957.856,0.00026984,2]
[419974289,1775578232961,-537.6845,0.00026984,2]
[419974290,1775578232971,-2230.315306,0.00026984,2]
[419974291,1775578232981,-4500.0,0.00027,8]
[419974292,1775578232991,-10916.57596502,0.00027,2]
[419974293,1775578233003,-557.5788265,0.00027039,2]
[419974294,1775578233014,-2030.296672,0.00027039,2]
[419974295,1775578233023,-52044.54790934,0.00027044,2]
[419974296,1775578233036,-3006.78310647,0.00027044,2]
[419974297,1775578233048,-3880.96814904,0.00027044,2]
[419974411,1775578242836,-1189.83805405,0.00026773,2]
[419974418,1775578242892,-3810.16194595,0.00026773,2]
[419974420,1775578242902,-1394.62203868,0.00027043,2]
[419974421,1775578242911,-500.0,0.00027043,2]
[419974424,1775578242922,-1394.62203868,0.00027043,2]
[419974426,1775578242932,-1394.62203868,0.00027043,2]
[419974427,1775578242942,-1394.62203868,0.00027043,2]
[419974429,1775578242951,-1394.62203868,0.00027043,2]
[419974431,1775578242961,-1394.62203868,0.00027043,2]
[419974433,1775578242969,-1394.62203868,0.00027043,2]
[419974435,1775578242979,-1394.62203868,0.00027043,2]
[419974437,1775578242988,-365.86038629,0.00027043,2]
[419974439,1775578242998,-1394.62203868,0.00027043,2]
[419974441,1775578243007,-500.0,0.00027043,2]
[419974443,1775578243018,-1394.62203868,0.00027043,2]
[419974445,1775578243028,-1394.62203868,0.00027043,2]
[419974447,1775578243038,-500.0,0.00027043,2]
[419974449,1775578243049,-1394.62203868,0.00027043,2]
[419974451,1775578243059,-1394.62203868,0.00027043,2]
[419974453,1775578243069,-500.0,0.00027043,2]
[419974455,1775578243079,-211.3,0.00027043,2]
[419974457,1775578243089,-250.0,0.00027043,2]
[419974459,1775578243099,-949.59222493,0.00027043,2]
[419974557,1775578243996,-446.0,0.00026773,10]
[419974559,1775578244006,-202.91394437,0.00027043,2]
[419974673,1775578246912,-1115.0,0.00027043,10]
[419974674,1775578246923,-66.7485549,0.00027043,2]
[419974675,1775578246935,-175.36731448,0.00027043,2]
[419974676,1775578246947,-176.5533141,0.00027043,2]
[419974677,1775578246968,-1218.06872458,0.00027043,2]
[419974678,1775578246979,-1394.62203868,0.00027043,2]
[419974679,1775578246988,-1394.62203868,0.00027043,2]
[419974680,1775578246998,-269.66730145,0.00027043,2]
[419974837,1775578802698,154.06,9e-05,2]
[419974838,1775578803080,154.06,9e-05,2]
[419974839,1775578803351,154.06,9.1e-05,2]
[419974840,1775578803638,37.82,9.1e-05,2]
[419974841,1775578803665,116.24,9.1e-05,2]
[419974842,1775578803900,154.06,9.1e-05,2]
[419974843,1775578804190,154.06,9.2e-05,2]
[419974844,1775578804495,75.64,9.2e-05,2]
[419974845,1775578804522,78.42,9.2e-05,2]
[419974846,1775578804776,154.06,9.2e-05,2]
[419974847,1775578805066,154.06,9.3e-05,2]
[419974848,1775578805337,113.46,9.3e-05,2]
[419974849,1775578805368,40.6,9.3e-05,2]
[419974850,1775578805622,154.06,9.3e-05,2]
[419974851,1775578805877,154.06,9.4e-05,2]
[419974852,1775578806153,151.28,9.4e-05,2]
[419974853,1775578806184,2.78,9.4e-05,2]
[419974854,1775578806521,154.06,9.4e-05,2]
[419974855,1775578806984,154.06,9.5e-05,2]
[419974856,1775578807257,154.06,9.5e-05,2]
[419974858,1775578807548,35.04,9.6e-05,2]
[419974859,1775578807574,119.02,9.6e-05,2]
[419974860,1775578807850,154.06,9.6e-05,2]
[419974861,1775578808165,154.06,9.6e-05,2]
[419974862,1775578808446,154.06,9.7e-05,2]
[419974863,1775578808767,154.06,9.7e-05,2]
[419974864,1775578809044,154.06,9.7e-05,2]
[419974865,1775578809371,154.06,9.8e-05,2]
[419974866,1775578809669,154.06,9.8e-05,2]
[419974867,1775578809969,154.06,9.8e-05,2]
[419974868,1775578810233,154.06,9.9e-05,2]
[419974869,1775578810520,154.06,9.9e-05,2]
[419974887,1775578963568,-151.0,0.00013233,14]
[419974888,1775578964935,-55.45623152,0.00013233,14]
[419974992,1775579431844,-327.0,0.00013562,2]
[419974994,1775579431855,-1369.97378115,0.00013562,2]
[419975011,1775579438141,-3303.02621885,0.00013562,2]
[419975012,1775579438151,-1000.0,0.00013699,2]
[419975013,1775579438162,-300.0,0.00018656,2]
[419975014,1775579438173,-975.0,0.00018656,2]
[419975015,1775579438183,-15380.3736,0.00018657,2]
[419975016,1775579438194,-6958.7617532,0.00019174,2]
[419975017,1775579438204,-500.0,0.00019725,2]
[419975018,1775579438215,-500.0,0.00019725,2]
[419975019,1775579438226,-203.73392887,0.00019725,2]
[419975020,1775579438237,-500.0,0.00019725,2]
[419975021,1775579438247,-500.0,0.00019725,2]
[419975022,1775579438257,-500.0,0.00019725,2]
[419975023,1775579438268,-573.91847086,0.00019725,2]
[419975025,1775579438279,-500.0,0.00019725,2]
[419975026,1775579438290,-500.0,0.00019725,2]
[419975027,1775579438301,-500.0,0.00019725,2]
[419975028,1775579438311,-500.0,0.00019725,2]
[419975029,1775579438321,-4535.38737201,0.00019726,2]
[419975030,1775579438331,-500.0,0.000198,2]
[419975031,1775579438342,-214.8484501,0.000198,2]
[419975032,1775579438353,-500.0,0.000198,2]
[419975033,1775579438363,-151.71483193,0.0002,2]
[419975034,1775579438374,-1000.0,0.00020348,2]
[419975035,1775579438385,-309.89665465,0.00020348,2]
[419975036,1775579438396,-381.17042381,0.00020896,2]
[419975037,1775579438406,-157.0,0.000209,2]
[419975038,1775579438416,-157.0,0.000209,2]
[419975039,1775579438428,-180.08463978,0.00021246,2]
[419975040,1775579438439,-157.0,0.000219,2]
[419975041,1775579438449,-157.0,0.000219,2]
[419975042,1775579438459,-157.0,0.000229,2]
[419975043,1775579438469,-157.0,0.000229,2]
[419975044,1775579438479,-606.0,0.00023338,10]
[419975045,1775579438489,-166.0,0.000239,2]
[419975046,1775579438499,-157.0,0.000239,2]
[419975047,1775579438509,-1497.89374404,0.00024277,2]
[419975048,1775579438521,-2361.01326647,0.00024726,2]
[419975049,1775579438532,-2953.44937745,0.00024726,2]
[419975050,1775579438543,-32650.20340893,0.000248,2]
[419975051,1775579438554,-157.0,0.000249,2]
[419975052,1775579438565,-644.0,0.00025495,2]
[419975053,1775579438576,-2205.0,0.00025495,2]
[419975054,1775579438587,-738.0,0.00025495,2]
[419975055,1775579438598,-184.0,0.00025495,2]
[419975056,1775579438609,-440.0,0.00025495,2]
[419975057,1775579438620,-1957.856,0.00025501,2]
[419975058,1775579438630,-557.5788265,0.00025501,2]
[419975059,1775579438641,-156.587,0.00025501,2]
[419975061,1775579438652,-537.6845,0.00025501,2]
[419975063,1775579438662,-2150.738,0.00025501,2]
[419975066,1775579438673,-2030.296672,0.00025556,2]
[419975068,1775579438684,-557.5788265,0.00025556,2]
[419975070,1775579438694,-2105.41764886,0.00025611,2]
[419975072,1775579438704,-578.20924308,0.00025611,2]
[419975074,1775579438715,-200.0,0.00025632,30]
[419975076,1775579438727,-2183.31810187,0.00025666,2]
[419975078,1775579438738,-599.60298507,0.00025666,2]
[419975080,1775579438750,-623.82080352,0.00025721,2]
[419975082,1775579438762,-438.09993885,0.00025721,2]
[419975084,1775579438774,-1000.0,0.00025732,30]
[419975087,1775579438785,-25000.0,0.000258,2]
[419975089,1775579438797,-169.0,0.000259,2]
[419975091,1775579438808,-500.0,0.00025911,30]
[419975093,1775579438819,-534.8021511,0.00025911,30]
[419975095,1775579438831,-275.512294,0.00025911,30]
[419975097,1775579438841,-5008.3017809,0.00026,120]
[419975099,1775579438852,-2571.91773222,0.00026027,2]
[419975101,1775579438862,-1899.528,0.00026046,2]
[419975103,1775579438873,-2230.315306,0.00026049,2]
[419975106,1775579438885,-151.5,0.00026262,2]
[419975108,1775579438896,-151.5,0.00026262,2]
[419975110,1775579438906,-198.0,0.00026262,2]
[419975112,1775579438917,-270.83333333,0.00026406,2]
[419975114,1775579438929,-168.0,0.00026422,2]
[419975116,1775579438938,-168.0,0.00026425,2]
[419975118,1775579438949,-202.63325162,0.00026521,2]
[419975120,1775579438960,-2312.83697232,0.00026597,2]
[419975122,1775579438970,-783.60506694,0.00026621,2]
[419975124,1775579438981,-884.47,0.00026674,2]
[419975126,1775579438992,-200.0,0.00026769,2]
[419975128,1775579439004,-15000.0,0.000268,2]
[419975131,1775579439015,-168.0,0.00026809,7]
[419975133,1775579439025,-46853.49120689,0.00026822,2]
[419975135,1775579439036,-790.0,0.000269,2]
[419975137,1775579439047,-2208.46612137,0.00026922,2]
[419975139,1775579439058,-884.47,0.00026923,2]
[419975141,1775579439069,-884.47,0.00026923,2]
[419975144,1775579439080,-884.47,0.00026923,2]
[419975146,1775579439092,-884.47,0.00026923,2]
[419975148,1775579439103,-884.47,0.00026923,2]
[419975150,1775579439114,-200.0,0.00026924,2]
[419975152,1775579439124,-197.4649555,0.00026999,2]
[419975154,1775579439135,-2107.8152301,0.00026999,2]
[419975156,1775579439146,-702.6050767,0.00026999,2]
[419975158,1775579439156,-500.0,0.00026999,2]
[419975161,1775579439167,-816.27806598,0.00027,82]
[419975163,1775579439179,-884.47,0.00027021,2]
[419975165,1775579439189,-834.14,0.00027023,2]
[419975167,1775579439199,-834.14,0.00027023,2]
[419975169,1775579439211,-834.14,0.00027023,2]
[419975171,1775579439221,-834.14,0.00027023,2]
[419975173,1775579439233,-834.14,0.00027023,2]
[419975175,1775579439244,-834.14,0.00027023,2]
[419975177,1775579439256,-884.47,0.00027023,2]
[419975180,1775579439267,-884.47,0.00027023,2]
[419975182,1775579439278,-884.47,0.00027023,2]
[419975184,1775579439288,-884.47,0.00027023,2]
[419975186,1775579439299,-884.47,0.00027023,2]
[419975188,1775579439310,-884.47,0.00027023,2]
[419975190,1775579439321,-120088.13642567,0.00027024,2]
[419975192,1775579439332,-250.0,0.00027024,2]
[419975194,1775579439343,-250.0,0.00027024,2]
[419975196,1775579439353,-250.0,0.00027024,2]
[419975198,1775579439365,-250.0,0.00027024,2]
[419975200,1775579439375,-3254.750091,0.00027024,2]
[419975202,1775579439386,-3254.750091,0.00027024,2]
[419975205,1775579439398,-3254.750091,0.00027024,2]
[419975252,1775579439838,-3254.750091,0.00027024,2]
[419975255,1775579439859,-834.14,0.00027027,2]
[419975259,1775579439884,-834.14,0.00027042,2]
[419975261,1775579439901,-834.14,0.00027043,2]
[419975263,1775579439911,-834.14,0.00027043,2]
[419975265,1775579439921,-834.14,0.00027043,2]
[419975267,1775579439930,-834.14,0.00027043,2]
[419975269,1775579439940,-834.14,0.00027043,2]
[419975271,1775579439950,-834.14,0.00027043,2]
[419975273,1775579439960,-834.14,0.00027043,2]
[419975275,1775579439970,-834.14,0.00027043,2]
[419975277,1775579439980,-834.14,0.00027043,2]
[419975279,1775579439990,-834.14,0.00027043,2]
[419975281,1775579440000,-834.14,0.00027043,2]
[419975283,1775579440009,-834.14,0.00027043,2]
[419975285,1775579440018,-834.14,0.00027043,2]
[419975287,1775579440027,-834.14,0.00027043,2]
[419975289,1775579440038,-834.14,0.00027043,2]
[419975291,1775579440047,-834.24464222,0.00027043,2]
[419975293,1775579440056,-153.0,0.00027044,3]
[419975295,1775579440066,-153.0,0.00027044,3]
[419975297,1775579440076,-153.0,0.00027044,3]
[419975299,1775579440086,-153.0,0.00027044,3]
[419975301,1775579440095,-153.0,0.00027044,3]
[419975304,1775579440106,-153.0,0.00027044,3]
[419975306,1775579440115,-153.0,0.00027044,3]
[419975308,1775579440125,-153.0,0.00027044,3]
[419975309,1775579440134,-276.0,0.00027044,3]
[419975311,1775579440144,-502.44216819,0.00027073,2]
[419975313,1775579440154,-483.37708546,0.00027073,2]
[419975315,1775579440164,-500.0,0.00027073,2]
[419975317,1775579440173,-502.83598002,0.00027073,2]
[419975319,1775579440183,-200.640221,0.00027118,14]
[419975321,1775579440193,-500.0,0.00027142,2]
[419975323,1775579440202,-500.0,0.00027142,2]
[419975325,1775579440212,-884.47,0.00027142,2]
[419975327,1775579440222,-545.09838459,0.00027143,2]
[419975329,1775579440231,-884.47,0.00027143,2]
[419975331,1775579440242,-2398.4119403,0.00027145,2]
[419975333,1775579440253,-168.0,0.00027204,2]
[419975335,1775579440263,-202.63325162,0.00027297,2]
[419975337,1775579440273,-981.96906726,0.000273,120]
[419975339,1775579440283,-2439.89642515,0.000273,120]
[419975341,1775579440292,-884.47,0.00027341,2]
[419975343,1775579440302,-667.01875941,0.00027344,2]
[419975346,1775579440312,-884.47,0.00027354,2]
[419975348,1775579440322,-562.27856737,0.00027355,7]
[419975350,1775579440331,-168.0,0.00027371,7]
[419975351,1775579440341,-500.0,0.00027373,2]
[419975354,1775579440352,-500.0,0.00027373,2]
[419975356,1775579440362,-253.74036325,0.00027373,2]
[419975358,1775579440371,-500.0,0.00027373,2]
[419975360,1775579440381,-500.0,0.00027373,2]
[419975362,1775579440391,-500.56888447,0.00027373,2]
[419975364,1775579440401,-500.0,0.00027373,2]
[419975366,1775579440410,-500.0,0.00027373,2]
[419975367,1775579440420,-500.0,0.00027373,2]
[419975369,1775579440429,-500.0,0.00027373,2]
[419975371,1775579440439,-500.0,0.00027373,2]
[419975373,1775579440449,-501.53511518,0.00027373,2]
[419975375,1775579440459,-500.20855588,0.00027373,2]
[419975378,1775579440469,-506.00898444,0.00027373,2]
[419975380,1775579440480,-250.0,0.00027392,9]
[419975381,1775579440489,-250.0,0.00027392,9]
[419975383,1775579440500,-201.84,0.00027392,9]
[419975385,1775579440509,-1464.40598476,0.00027396,2]
[419975387,1775579440519,-1464.40598476,0.00027396,2]
[419975390,1775579440529,-1464.40598475,0.00027396,2]
[419975391,1775579440539,-1464.40598475,0.00027396,2]
[419975393,1775579440548,-884.47,0.00027396,2]
[419975395,1775579440558,-884.47,0.00027396,2]
[419975397,1775579440568,-884.47,0.00027396,2]
[419975399,1775579440577,-884.47,0.00027396,2]
[419975401,1775579440587,-884.47,0.00027396,2]
[419975403,1775579440597,-884.47,0.00027396,2]
[419975405,1775579440606,-884.6399027,0.00027396,2]
[419975407,1775579440615,-500.0,0.00027397,2]
[419975409,1775579440625,-500.0,0.00027397,2]
[419975411,1775579440635,-500.0,0.00027397,2]
[419975413,1775579440644,-500.0,0.00027397,2]
[419975415,1775579440654,-601.73,0.00027397,2]
[419975417,1775579440664,-500.0,0.00027397,2]
[419975420,1775579440674,-1685.86,0.00027397,2]
[419975422,1775579440684,-1141.9,0.00027397,2]
[419975424,1775579440693,-583.32,0.00027397,2]
[419975426,1775579440703,-905.29,0.00027397,2]
[419975428,1775579440713,-1553.47,0.00027397,2]
[419975430,1775579440722,-500.0,0.00027397,2]
[419975431,1775579440730,-500.0,0.00027397,2]
[419975433,1775579440740,-500.0,0.00027397,2]
[419975435,1775579440750,-500.0,0.00027397,2]
[419975437,1775579440759,-500.0,0.00027397,2]
[419975440,1775579440770,-500.0,0.00027397,2]
[419975441,1775579440779,-500.0,0.00027397,2]
[419975443,1775579440788,-798.5,0.00027397,2]
[419975445,1775579440799,-500.0,0.00027397,2]
[419975447,1775579440808,-500.0,0.00027397,2]
[419975449,1775579440818,-500.0,0.00027397,2]
[419975451,1775579440828,-757.2,0.00027397,2]
[419975453,1775579440837,-284.37428007,0.00027397,2]
[419975456,1775579440847,-744.91,0.00027397,2]
[419975457,1775579440856,-500.0,0.00027397,2]
[419975459,1775579440866,-500.0,0.00027397,2]
[419975461,1775579440876,-500.0,0.00027397,2]
[419975463,1775579440885,-644.76448575,0.00027397,2]
[419975466,1775579440895,-500.0,0.00027397,2]
[419975468,1775579440905,-500.0,0.00027397,2]
[419975470,1775579440915,-500.0,0.00027397,2]
[419975472,1775579440925,-500.0,0.00027397,2]
[419975474,1775579440934,-717.65,0.00027397,2]
[419975476,1775579440943,-500.0,0.00027397,2]
[419975478,1775579440953,-1828.96,0.00027397,2]
[419975479,1775579440962,-500.0,0.00027397,2]
[419975481,1775579440971,-500.0,0.00027397,2]
[419975483,1775579440980,-500.0,0.00027397,2]
[419975485,1775579440989,-583.68020189,0.00027397,2]
[419975487,1775579440999,-622.18,0.00027397,2]
[419975489,1775579441009,-279.42341085,0.00027397,2]
[419975491,1775579441019,-719.64,0.00027397,2]
[419975493,1775579441028,-500.0,0.00027397,2]
[419975495,1775579441039,-1181.47,0.00027397,2]
[419975497,1775579441049,-500.0,0.00027397,2]
[419975499,1775579441059,-500.0,0.00027397,2]
[419975501,1775579441069,-500.0,0.00027397,2]
[419975503,1775579441079,-751.43,0.00027397,2]
[419975505,1775579441089,-1009.02,0.00027397,2]
[419975507,1775579441099,-500.0,0.00027397,2]
[419975509,1775579441109,-554.89721631,0.00027397,2]
[419975511,1775579441119,-500.0,0.00027397,2]
[419975513,1775579441129,-500.0,0.00027397,2]
[419975516,1775579441139,-522.59417236,0.00027397,2]
[419975518,1775579441149,-253.80617581,0.00027397,2]
[419975519,1775579441158,-500.0,0.00027397,2]
[419975521,1775579441168,-500.0,0.00027397,2]
[419975524,1775579441178,-500.0,0.00027397,2]
[419975526,1775579441188,-500.0,0.00027397,2]
[419975528,1775579441197,-203.185625,0.00027397,2]
[419975530,1775579441207,-500.0,0.00027397,2]
[419975532,1775579441217,-772.83,0.00027397,2]
[419975533,1775579441227,-500.0,0.00027397,2]
[419975536,1775579441237,-500.0,0.00027397,2]
[419975538,1775579441247,-500.0,0.00027397,2]
[419975539,1775579441257,-500.0,0.00027397,2]
[419975541,1775579441267,-500.0,0.00027397,2]
[419975544,1775579441277,-500.0,0.00027397,2]
[419975546,1775579441286,-500.0,0.00027397,2]
[419975548,1775579441296,-500.0,0.00027397,2]
[419975550,1775579441306,-630.90012015,0.00027397,2]
[419975552,1775579441315,-881.51,0.00027397,2]
[419975554,1775579441326,-500.0,0.00027397,2]
[419975556,1775579441336,-500.0,0.00027397,2]
[419975558,1775579441346,-748.09,0.00027397,2]
[419975560,1775579441355,-500.0,0.00027397,2]
[419975562,1775579441366,-500.0,0.00027397,2]
[419975564,1775579441376,-756.69,0.00027397,2]
[419975566,1775579441385,-1262.89,0.00027397,2]
[419975568,1775579441395,-500.0,0.00027397,2]
[419975570,1775579441404,-2812.28,0.00027397,2]
[419975572,1775579441414,-1140.83,0.00027397,2]
[419975574,1775579441424,-548.41635749,0.00027397,2]
[419975576,1775579441435,-500.0,0.00027397,2]
[419975578,1775579441448,-500.0,0.00027397,2]
[419975580,1775579441458,-560.51,0.00027397,2]
[419975582,1775579441468,-500.0,0.00027397,2]
[419975584,1775579441478,-527.9,0.00027397,2]
[419975586,1775579441486,-500.0,0.00027397,2]
[419975588,1775579441496,-625.19,0.00027397,2]
[419975590,1775579441506,-500.0,0.00027397,2]
[419975592,1775579441515,-500.0,0.00027397,2]
[419975594,1775579441525,-584.08,0.00027397,2]
[419975596,1775579441534,-500.0,0.00027397,2]
[419975598,1775579441544,-1496.83,0.00027397,2]
[419975600,1775579441553,-500.0,0.00027397,2]
[419975602,1775579441563,-500.0,0.00027397,2]
[419975604,1775579441573,-500.0,0.00027397,2]
[419975606,1775579441583,-2453.02,0.00027397,2]
[419975608,1775579441592,-630.98,0.00027397,2]
[419975609,1775579441601,-500.0,0.00027397,2]
[419975611,1775579441611,-500.0,0.00027397,2]
[419975613,1775579441621,-500.0,0.00027397,2]
[419975616,1775579441631,-500.0,0.00027397,2]
[419975618,1775579441641,-500.0,0.00027397,2]
[419975620,1775579441650,-601.2,0.00027397,2]
[419975622,1775579441660,-500.0,0.00027397,2]
[419975624,1775579441669,-500.0,0.00027397,2]
[419975626,1775579441680,-536.38,0.00027397,2]
[419975628,1775579441690,-1100.47,0.00027397,2]
[419975630,1775579441700,-500.0,0.00027397,2]
[419975632,1775579441710,-500.0,0.00027397,2]
[419975634,1775579441719,-500.0,0.00027397,2]
[419975636,1775579441729,-500.0,0.00027397,2]
[419975638,1775579441738,-500.0,0.00027397,2]
[419975640,1775579441748,-353.06432105,0.00027397,2]
[419975642,1775579441758,-500.0,0.00027397,2]
[419975644,1775579441768,-659.53,0.00027397,2]
[419975646,1775579441779,-500.0,0.00027397,2]
[419975648,1775579441790,-1203.56,0.00027397,2]
[419975650,1775579441800,-2007.99,0.00027397,2]
[419975652,1775579441811,-500.0,0.00027397,2]
[419975654,1775579441820,-1920.19,0.00027397,2]
[419975656,1775579441830,-536.65,0.00027397,2]
[419975658,1775579441839,-500.0,0.00027397,2]
[419975660,1775579441849,-500.0,0.00027397,2]
[419975662,1775579441859,-500.0,0.00027397,2]
[419975664,1775579441869,-500.0,0.00027397,2]
[419975666,1775579441879,-500.0,0.00027397,2]
[419975668,1775579441890,-2115.01,0.00027397,2]
[419975670,1775579441899,-500.0,0.00027397,2]
[419975672,1775579441911,-500.0,0.00027397,2]
[419975674,1775579441921,-500.0,0.00027397,2]
[419975676,1775579441931,-500.0,0.00027397,2]
[419975678,1775579441941,-543.49778313,0.00027397,2]
[419975680,1775579441951,-500.0,0.00027397,2]
[419975682,1775579441960,-696.15,0.00027397,2]
[419975684,1775579441970,-633.68481252,0.00027397,2]
[419975686,1775579441980,-1185.36,0.00027397,2]
[419975688,1775579441990,-520.07305937,0.00027397,2]
[419975690,1775579441999,-500.0,0.00027397,2]
[419975692,1775579442009,-500.0,0.00027397,2]
[419975694,1775579442019,-500.0,0.00027397,2]
[419975696,1775579442029,-500.0,0.00027397,2]
[419975698,1775579442038,-369.14514105,0.00027397,2]
[419975701,1775579442048,-500.0,0.00027397,2]
[419975703,1775579442058,-500.0,0.00027397,2]
[419975705,1775579442068,-500.0,0.00027397,2]
[419975707,1775579442078,-500.0,0.00027397,2]
[419975709,1775579442088,-364.8073504,0.00027397,2]
[419975711,1775579442097,-500.0,0.00027397,2]
[419975713,1775579442107,-515.07237473,0.00027397,2]
[419975715,1775579442116,-566.68,0.00027397,2]
[419975716,1775579442126,-500.0,0.00027397,2]
[419975717,1775579442136,-500.0,0.00027397,2]